fUST/lending_fUST_20250506
["ID","MTS","AMOUNT","RATE_DAILY","PERIOD"]
[360010894,1746478251475,-400.0,0.00033424,8]
[360010896,1746478251484,-598.18,0.00033424,8]
[360010898,1746478251494,-975.04,0.00033424,8]
[360010900,1746478251503,-400.0,0.00033424,8]
[360010902,1746478251513,-411.14,0.00033424,8]
[360010904,1746478251524,-400.0,0.00033424,8]
[360010906,1746478251533,-400.0,0.00033424,8]
[360010908,1746478251542,-400.0,0.00033424,8]
[360010910,1746478251552,-400.0,0.00033424,8]
[360010912,1746478251561,-1817.46,0.00033424,8]
[360010914,1746478251571,-436.25,0.00033424,8]
[360010916,1746478251580,-151.0,0.00033424,14]
[360010918,1746478251589,-400.0,0.00033424,8]
[360010920,1746478251598,-460.72,0.00033424,8]
[360010922,1746478251608,-3933.64,0.00033424,8]
[360010924,1746478251618,-491.82,0.00033424,8]
[360010926,1746478251627,-21455.99,0.00033424,8]
[360010929,1746478251637,-400.0,0.00033424,8]
[360010931,1746478251647,-400.0,0.00033424,8]
[360010933,1746478251656,-171.29452061,0.00033424,8]
[360010935,1746478251665,-400.0,0.00033424,8]
[360010937,1746478251674,-699.19,0.00033424,8]
[360010939,1746478251684,-2258.67,0.00033424,8]
[360010941,1746478251693,-518.32,0.00033424,8]
[360010943,1746478251702,-866.11,0.00033424,8]
[360010945,1746478251711,-1754.39,0.00033424,8]
[360010946,1746478251720,-568.11,0.00033424,8]
[360010949,1746478251730,-151.0,0.00033424,14]
[360010951,1746478251739,-151.0,0.00033424,14]
[360010953,1746478251748,-400.0,0.00033424,8]
[360010955,1746478251758,-493.11,0.00033424,8]
[360010956,1746478251767,-2851.87,0.00033424,8]
[360010958,1746478251776,-228.52109403,0.00033424,8]
[360010961,1746478251787,-2650.13,0.00033424,8]
[360010963,1746478251796,-400.76,0.00033424,8]
[360010965,1746478251806,-400.0,0.00033424,8]
[360010967,1746478251815,-400.0,0.00033424,8]
[360010969,1746478251824,-1576.25,0.00033424,8]
[360010971,1746478251833,-400.0,0.00033424,8]
[360010973,1746478251842,-1372.78,0.00033424,8]
[360010975,1746478251851,-400.0,0.00033424,8]
[360010977,1746478251861,-999.53,0.00033424,8]
[360010979,1746478251870,-400.0,0.00033424,8]
[360010981,1746478251879,-516.04,0.00033424,8]
[360010982,1746478251889,-1376.17,0.00033424,8]
[360010985,1746478251898,-661.72,0.00033424,8]
[360010986,1746478251909,-151.0,0.00033424,14]
[360010989,1746478251919,-6359.3,0.00033424,8]
[360010991,1746478251928,-940.89,0.00033424,8]
[360010993,1746478251938,-400.0,0.00033424,8]
[360010994,1746478251947,-8405.77,0.00033424,8]
[360010997,1746478251959,-315.99680839,0.00033424,8]
[360010999,1746478251969,-400.0,0.00033424,8]
[360011001,1746478251979,-1110.72,0.00033424,8]
[360011003,1746478251989,-1647.64,0.00033424,8]
[360011005,1746478251999,-207.76171077,0.00033424,8]
[360011007,1746478252009,-487.22,0.00033424,8]
[360011009,1746478252018,-400.0,0.00033424,2]
[360011011,1746478252027,-445.695408,0.00033424,14]
[360011013,1746478252037,-151.0,0.00033424,14]
[360011015,1746478252046,-445.695408,0.00033424,14]
[360011017,1746478252056,-400.0,0.00033424,2]
[360011019,1746478252066,-690.94,0.00033424,8]
[360011021,1746478252075,-400.0,0.00033424,8]
[360011023,1746478252085,-2712.48,0.00033424,8]
[360011025,1746478252095,-400.0,0.00033424,8]
[360011027,1746478252104,-400.0,0.00033424,2]
[360011029,1746478252114,-151.0,0.00033424,14]
[360011031,1746478252123,-400.0,0.00033424,8]
[360011033,1746478252135,-421.79091668,0.00033424,8]
[360011035,1746478252144,-400.0,0.00033424,8]
[360011037,1746478252153,-400.0,0.00033424,8]
[360011039,1746478252163,-207.676881,0.00033424,2]
[360011041,1746478252173,-1500.0,0.00033425,2]
[360011042,1746478252182,-151.0,0.00033425,2]
[360011043,1746478252191,-467.17393021,0.00033431,2]
[360011044,1746478252201,-217.149529,0.00033445,2]
[360011045,1746478252211,-198.0,0.00033453,2]
[360011046,1746478252220,-2258.0,0.00033497,2]
[360011047,1746478252230,-635.0,0.000335,2]
[360011048,1746478252240,-198.0,0.00033507,2]
[360011049,1746478252249,-151.0,0.00033507,2]
[360011050,1746478252259,-151.0,0.00033507,2]
[360011051,1746478252268,-500.0,0.00033507,2]
[360011052,1746478252277,-200.02059944,0.00033507,2]
[360011054,1746478252287,-151.0,0.00033534,2]
[360011055,1746478252296,-151.0,0.00033534,2]
[360011057,1746478252305,-500.0,0.00033534,2]
[360011059,1746478252315,-198.0,0.00033562,2]
[360011061,1746478252324,-151.0,0.00033562,2]
[360011064,1746478252334,-500.0,0.00033562,2]
[360011066,1746478252343,-256.76663444,0.00033589,2]
[360011068,1746478252353,-500.0,0.00033589,2]
[360011070,1746478252362,-500.0,0.00033617,2]
[360011072,1746478252371,-160.0,0.00033642,2]
[360011074,1746478252381,-160.0,0.00033642,2]
[360011076,1746478252390,-421.83547488,0.00033642,2]
[360011078,1746478252399,-841.77443764,0.00033644,2]
[360011080,1746478252408,-160.0,0.00033644,2]
[360011082,1746478252418,-182.23035355,0.00033644,2]
[360011084,1746478252429,-500.0,0.00033644,2]
[360011086,1746478252439,-12607.13495863,0.00033663,2]
[360011088,1746478252448,-151.0,0.0003367,14]
[360011090,1746478252457,-151.0,0.0003367,14]
[360011092,1746478252466,-151.0,0.0003367,14]
[360011094,1746478252475,-151.0,0.0003367,14]
[360011096,1746478252484,-151.0,0.0003367,14]
[360011098,1746478252494,-154.669196,0.0003367,14]
[360011100,1746478252504,-204.310319,0.00033671,3]
[360011102,1746478252513,-500.0,0.00033671,2]
[360011104,1746478252522,-501.34714269,0.00033693,29]
[360011106,1746478252531,-1465.62,0.00033698,8]
[360011108,1746478252541,-400.0,0.00033698,8]
[360011110,1746478252550,-400.0,0.00033698,8]
[360011112,1746478252559,-215.65,0.00033698,8]
[360011114,1746478252568,-400.0,0.00033698,8]
[360011116,1746478252577,-400.0,0.00033698,8]
[360011118,1746478252587,-400.0,0.00033698,8]
[360011120,1746478252595,-506.86,0.00033698,8]
[360011122,1746478252605,-400.0,0.00033698,8]
[360011124,1746478252614,-650.49,0.00033698,8]
[360011126,1746478252624,-400.0,0.00033698,8]
[360011128,1746478252634,-400.0,0.00033698,8]
[360011130,1746478252643,-400.0,0.00033698,8]
[360011132,1746478252652,-400.0,0.00033698,8]
[360011134,1746478252662,-400.0,0.00033698,8]
[360011136,1746478252672,-400.0,0.00033698,8]
[360011138,1746478252681,-1120.46,0.00033698,8]
[360011140,1746478252690,-400.0,0.00033698,8]
[360011142,1746478252700,-400.0,0.00033698,8]
[360011144,1746478252709,-753.58,0.00033698,8]
[360011146,1746478252718,-400.0,0.00033698,8]
[360011148,1746478252728,-500.0,0.00033698,8]
[360011150,1746478252737,-400.0,0.00033698,8]
[360011152,1746478252746,-507.88,0.00033698,8]
[360011154,1746478252755,-400.0,0.00033698,8]
[360011156,1746478252765,-1829.51,0.00033698,8]
[360011158,1746478252774,-400.0,0.00033698,8]
[360011160,1746478252783,-400.0,0.00033698,8]
[360011176,1746478252921,-1620.57,0.00033698,8]
[360011178,1746478252932,-400.0,0.00033698,8]
[360011180,1746478252942,-592.51,0.00033698,8]
[360011182,1746478252952,-400.0,0.00033698,8]
[360011184,1746478252966,-537.21,0.00033698,8]
[360011186,1746478252975,-400.0,0.00033698,8]
[360011188,1746478252984,-2523.41,0.00033698,8]
[360011190,1746478252994,-547.87,0.00033698,8]
[360011192,1746478253004,-400.0,0.00033698,8]
[360011194,1746478253014,-400.0,0.00033698,8]
[360011196,1746478253023,-543.46,0.00033698,8]
[360011198,1746478253033,-400.0,0.00033698,8]
[360011201,1746478253045,-500.0,0.00033698,8]
[360011203,1746478253055,-400.0,0.00033698,8]
[360011205,1746478253064,-151.0,0.00033698,14]
[360011207,1746478253073,-400.0,0.00033698,8]
[360011209,1746478253082,-770.95,0.00033698,8]
[360011211,1746478253093,-1081.95,0.00033698,8]
[360011213,1746478253102,-400.0,0.00033698,8]
[360011215,1746478253111,-400.0,0.00033698,8]
[360011217,1746478253120,-400.0,0.00033698,8]
[360011219,1746478253129,-330.23038431,0.00033698,8]
[360011221,1746478253138,-400.0,0.00033698,8]
[360011223,1746478253148,-483.31,0.00033698,8]
[360011225,1746478253158,-273.36204071,0.00033698,8]
[360011227,1746478253167,-1243.4,0.00033698,8]
[360011229,1746478253177,-1098.85,0.00033698,8]
[360011231,1746478253186,-482.85,0.00033698,8]
[360011233,1746478253195,-400.0,0.00033698,8]
[360011235,1746478253205,-566.0,0.00033698,8]
[360011237,1746478253214,-400.0,0.00033698,8]
[360011239,1746478253223,-400.0,0.00033698,8]
[360011241,1746478253233,-400.0,0.00033698,8]
[360011243,1746478253243,-400.0,0.00033698,8]
[360011245,1746478253253,-400.0,0.00033698,8]
[360011247,1746478253262,-400.0,0.00033698,8]
[360011249,1746478253271,-400.0,0.00033698,8]
[360011251,1746478253281,-400.0,0.00033698,8]
[360011253,1746478253290,-400.0,0.00033698,8]
[360011255,1746478253299,-400.0,0.00033698,8]
[360011257,1746478253309,-400.0,0.00033698,8]
[360011259,1746478253318,-709.8,0.00033698,8]
[360011261,1746478253327,-400.0,0.00033698,8]
[360011263,1746478253337,-400.0,0.00033698,8]
[360011265,1746478253346,-4121.14,0.00033698,8]
[360011267,1746478253356,-400.0,0.00033698,8]
[360011269,1746478253365,-812.34,0.00033698,8]
[360011271,1746478253374,-654.51,0.00033698,8]
[360011273,1746478253383,-400.0,0.00033698,8]
[360011275,1746478253392,-730.71,0.00033698,8]
[360011277,1746478253402,-400.0,0.00033698,8]
[360011279,1746478253411,-400.0,0.00033698,8]
[360011281,1746478253421,-400.0,0.00033698,8]
[360011283,1746478253430,-400.0,0.00033698,8]
[360011285,1746478253439,-400.0,0.00033698,8]
[360011287,1746478253451,-2752.23,0.00033698,2]
[360011289,1746478253460,-400.0,0.00033698,8]
[360011291,1746478253469,-432.56,0.00033698,8]
[360011293,1746478253478,-762.68,0.00033698,8]
[360011295,1746478253486,-431.94,0.00033698,8]
[360011297,1746478253495,-436.54,0.00033698,8]
[360011299,1746478253505,-400.0,0.00033698,8]
[360011301,1746478253513,-400.0,0.00033698,8]
[360011303,1746478253522,-673.29,0.00033698,8]
[360011305,1746478253531,-171.86222725,0.00033698,8]
[360011307,1746478253540,-1252.09,0.00033698,8]
[360011309,1746478253550,-702.93,0.00033698,8]
[360011311,1746478253559,-400.0,0.00033698,8]
[360011313,1746478253568,-400.0,0.00033698,8]
[360011315,1746478253577,-400.0,0.00033698,8]
[360011317,1746478253587,-1335.89,0.00033698,8]
[360011318,1746478253596,-400.0,0.00033698,8]
[360011321,1746478253606,-409.22,0.00033698,8]
[360011323,1746478253615,-400.0,0.00033698,8]
[360011325,1746478253624,-990.15,0.00033698,8]
[360011327,1746478253633,-400.0,0.00033698,8]
[360011329,1746478253642,-400.0,0.00033698,8]
[360011331,1746478253651,-400.0,0.00033698,8]
[360011333,1746478253661,-784.71,0.00033698,8]
[360011335,1746478253671,-624.56,0.00033698,8]
[360011337,1746478253680,-411.93,0.00033698,8]
[360011339,1746478253690,-446.32,0.00033698,8]
[360011340,1746478253700,-500.9,0.00033698,8]
[360011342,1746478253709,-827.29,0.00033698,8]
[360011345,1746478253719,-530.84,0.00033698,8]
[360011347,1746478253729,-693.82,0.00033698,8]
[360011348,1746478253739,-612.41,0.00033698,8]
[360011351,1746478253748,-400.0,0.00033698,8]
[360011353,1746478253758,-400.0,0.00033698,8]
[360011355,1746478253767,-461.37,0.00033698,8]
[360011357,1746478253776,-352.803023,0.00033698,14]
[360011358,1746478253785,-352.803023,0.00033698,14]
[360011360,1746478253794,-430.1,0.00033698,8]
[360011362,1746478253804,-400.0,0.00033698,8]
[360011365,1746478253813,-563.39,0.00033698,8]
[360011366,1746478253823,-400.0,0.00033698,8]
[360011368,1746478253833,-400.0,0.00033698,8]
[360011371,1746478253842,-400.0,0.00033698,8]
[360011372,1746478253852,-400.0,0.00033698,8]
[360011375,1746478253862,-2969.31,0.00033698,8]
[360011377,1746478253871,-400.0,0.00033698,8]
[360011379,1746478253880,-400.0,0.00033698,8]
[360011381,1746478253890,-401.12,0.00033698,8]
[360011383,1746478253899,-400.0,0.00033698,8]
[360011384,1746478253908,-400.0,0.00033698,8]
[360011387,1746478253918,-3050.13,0.00033698,8]
[360011389,1746478253928,-2910.47,0.00033698,8]
[360011391,1746478253938,-773.72,0.00033698,8]
[360011393,1746478253947,-400.0,0.00033698,8]
[360011395,1746478253958,-1317.05,0.00033698,8]
[360011397,1746478253972,-2598.82,0.00033698,8]
[360011399,1746478253981,-400.0,0.00033698,8]
[360011401,1746478253990,-417.65,0.00033698,8]
[360011403,1746478254001,-552.03,0.00033698,8]
[360011405,1746478254010,-400.0,0.00033698,8]
[360011407,1746478254019,-400.0,0.00033698,8]
[360011408,1746478254028,-510.92,0.00033698,8]
[360011411,1746478254039,-2556.58,0.00033698,8]
[360011412,1746478254050,-400.0,0.00033698,8]
[360011415,1746478254060,-717.05,0.00033698,8]
[360011416,1746478254070,-400.0,0.00033698,8]
[360011419,1746478254080,-2500.71,0.00033698,8]
[360011420,1746478254089,-1021.6,0.00033698,8]
[360011422,1746478254098,-400.0,0.00033698,8]
[360011424,1746478254108,-400.0,0.00033698,8]
[360011426,1746478254118,-400.0,0.00033698,8]
[360011428,1746478254127,-400.0,0.00033698,8]
[360011431,1746478254137,-1929.98,0.00033698,8]
[360011432,1746478254146,-400.0,0.00033698,8]
[360011435,1746478254156,-400.0,0.00033698,8]
[360011437,1746478254166,-419.74,0.00033698,8]
[360011439,1746478254175,-409.03288481,0.00033698,8]
[360011441,1746478254185,-1671.31,0.00033698,8]
[360011443,1746478254195,-926.06,0.00033698,8]
[360011445,1746478254205,-400.0,0.00033698,8]
[360011447,1746478254215,-400.0,0.00033698,8]
[360011449,1746478254224,-766.89,0.00033698,8]
[360011451,1746478254233,-1401.18,0.00033698,8]
[360011453,1746478254243,-400.0,0.00033698,8]
[360011455,1746478254252,-400.0,0.00033698,8]
[360011457,1746478254262,-2028.41,0.00033698,8]
[360011458,1746478254271,-1584.51,0.00033698,8]
[360011460,1746478254281,-2185.29,0.00033698,8]
[360011463,1746478254290,-1838.89,0.00033698,8]
[360011464,1746478254300,-704.07,0.00033698,8]
[360011466,1746478254309,-400.0,0.00033698,8]
[360011469,1746478254319,-400.0,0.00033698,8]
[360011471,1746478254328,-426.69,0.00033698,8]
[360011472,1746478254338,-559.26,0.00033698,8]
[360011474,1746478254347,-1274.13,0.00033698,8]
[360011475,1746478254357,-2367.5,0.00033698,8]
[360011476,1746478254366,-400.0,0.00033698,8]
[360011477,1746478254375,-400.0,0.00033698,8]
[360011478,1746478254384,-1755.88,0.00033698,8]
[360011479,1746478254393,-400.0,0.00033698,8]
[360011480,1746478254403,-400.0,0.00033698,8]
[360011481,1746478254412,-444.31,0.00033698,8]
[360011482,1746478254421,-400.0,0.00033698,8]
[360011483,1746478254431,-558.74,0.00033698,8]
[360011484,1746478254440,-400.0,0.00033698,8]
[360011486,1746478254450,-400.0,0.00033698,8]
[360011488,1746478254459,-400.0,0.00033698,8]
[360011490,1746478254468,-1256.74,0.00033698,8]
[360011492,1746478254478,-804.09,0.00033698,8]
[360011494,1746478254487,-8688.02,0.00033698,8]
[360011496,1746478254497,-441.62,0.00033698,8]
[360011498,1746478254507,-211.59928299,0.00033698,8]
[360011500,1746478254516,-598.18,0.00033698,8]
[360011502,1746478254526,-400.0,0.00033698,8]
[360011504,1746478254535,-975.04,0.00033698,8]
[360011506,1746478254544,-400.0,0.00033698,8]
[360011508,1746478254554,-411.14,0.00033698,8]
[360011510,1746478254563,-400.0,0.00033698,8]
[360011512,1746478254573,-400.0,0.00033698,8]
[360011514,1746478254583,-400.0,0.00033698,8]
[360011516,1746478254592,-400.0,0.00033698,8]
[360011518,1746478254602,-1817.46,0.00033698,8]
[360011520,1746478254612,-436.25,0.00033698,8]
[360011522,1746478254621,-400.0,0.00033698,8]
[360011524,1746478254630,-460.72,0.00033698,8]
[360011526,1746478254639,-3933.64,0.00033698,8]
[360011528,1746478254648,-491.82,0.00033698,8]
[360011530,1746478254657,-21455.99,0.00033698,8]
[360011532,1746478254667,-400.0,0.00033698,8]
[360011534,1746478254676,-400.0,0.00033698,8]
[360011536,1746478254685,-400.0,0.00033698,8]
[360011538,1746478254694,-699.19,0.00033698,8]
[360011540,1746478254703,-2258.67,0.00033698,8]
[360011542,1746478254712,-518.32,0.00033698,8]
[360011544,1746478254722,-866.11,0.00033698,8]
[360011546,1746478254731,-1754.39,0.00033698,8]
[360011548,1746478254741,-568.11,0.00033698,8]
[360011550,1746478254750,-400.0,0.00033698,8]
[360011552,1746478254759,-493.11,0.00033698,8]
[360011554,1746478254769,-2851.87,0.00033698,8]
[360011555,1746478254779,-2650.13,0.00033698,8]
[360011557,1746478254788,-400.76,0.00033698,8]
[360011559,1746478254798,-400.0,0.00033698,8]
[360011561,1746478254807,-400.0,0.00033698,8]
[360011564,1746478254817,-1576.25,0.00033698,8]
[360011565,1746478254827,-1372.78,0.00033698,8]
[360011568,1746478254837,-400.0,0.00033698,8]
[360011569,1746478254846,-999.53,0.00033698,8]
[360011572,1746478254855,-400.0,0.00033698,8]
[360011573,1746478254864,-516.04,0.00033698,8]
[360011575,1746478254874,-1376.17,0.00033698,8]
[360011577,1746478254883,-661.72,0.00033698,8]
[360011579,1746478254893,-6359.3,0.00033698,8]
[360011582,1746478254902,-940.89,0.00033698,8]
[360011583,1746478254912,-400.0,0.00033698,8]
[360011585,1746478254921,-8405.77,0.00033698,8]
[360011587,1746478254931,-400.0,0.00033698,8]
[360011589,1746478254941,-1110.72,0.00033698,8]
[360011591,1746478254951,-1647.64,0.00033698,8]
[360011594,1746478254965,-487.22,0.00033698,8]
[360011595,1746478254975,-547.97752653,0.00033698,2]
[360011597,1746478254984,-400.0,0.00033698,2]
[360011600,1746478254994,-690.94,0.00033698,8]
[360011602,1746478255003,-400.0,0.00033698,8]
[360011604,1746478255013,-2712.48,0.00033698,8]
[360011606,1746478255022,-400.0,0.00033698,8]
[360011608,1746478255032,-400.0,0.00033698,2]
[360011610,1746478255041,-400.0,0.00033698,8]
[360011612,1746478255051,-252.4,0.00033698,8]
[360011614,1746478255060,-400.0,0.00033698,8]
[360011616,1746478255071,-500.0,0.00033699,2]
[360011618,1746478255080,-7219.73,0.000337,30]
[360011620,1746478255089,-500.0,0.00033726,2]
[360011622,1746478255098,-500.0,0.00033754,2]
[360011624,1746478255109,-545.0,0.00033767,2]
[360011626,1746478255118,-2242.0,0.00033767,2]
[360011628,1746478255129,-708.0,0.00033767,2]
[360011630,1746478255138,-422.895,0.00033767,2]
[360011632,1746478255147,-151.648,0.00033767,2]
[360011634,1746478255156,-475.80233478,0.00033781,2]
[360011636,1746478255165,-3326.55,0.000338,7]
[360011638,1746478255174,-158.22752525,0.00033968,5]
[360011640,1746478255183,-1465.62,0.00033972,8]
[360011642,1746478255192,-354.75970143,0.00033972,8]
[360011644,1746478255201,-432.48765891,0.00033972,8]
[360011646,1746478255210,-151.0,0.00033972,14]
[360011648,1746478255219,-336.22395886,0.00033972,8]
[360011650,1746478255228,-159.111363,0.00033972,14]
[360011652,1746478255238,-400.0,0.00033972,8]
[360011654,1746478255247,-151.0,0.00033972,14]
[360011656,1746478255256,-400.0,0.00033972,8]
[360011658,1746478255265,-151.0,0.00033972,14]
[360011660,1746478255274,-506.86,0.00033972,8]
[360011662,1746478255283,-152.155241,0.00033972,14]
[360011664,1746478255292,-151.0,0.00033972,14]
[360011666,1746478255301,-400.0,0.00033972,8]
[360011668,1746478255310,-650.49,0.00033972,8]
[360011670,1746478255320,-400.0,0.00033972,8]
[360011672,1746478255330,-400.0,0.00033972,8]
[360011673,1746478255339,-400.0,0.00033972,8]
[360011675,1746478255348,-400.0,0.00033972,8]
[360011678,1746478255358,-151.0,0.00033972,14]
[360011680,1746478255367,-400.0,0.00033972,8]
[360011682,1746478255376,-152.732938,0.00033972,14]
[360011684,1746478255386,-151.0,0.00033972,14]
[360011686,1746478255395,-400.0,0.00033972,8]
[360011688,1746478255404,-1120.46,0.00033972,8]
[360011690,1746478255414,-151.0,0.00033972,14]
[360011692,1746478255424,-400.0,0.00033972,8]
[360011694,1746478255433,-753.58,0.00033972,8]
[360011696,1746478255443,-400.0,0.00033972,8]
[360011698,1746478255452,-500.0,0.00033972,8]
[360011700,1746478255462,-400.0,0.00033972,8]
[360011702,1746478255471,-507.88,0.00033972,8]
[360011704,1746478255480,-400.0,0.00033972,8]
[360011706,1746478255490,-1829.51,0.00033972,8]
[360011708,1746478255499,-400.0,0.00033972,8]
[360011710,1746478255508,-400.0,0.00033972,8]
[360011712,1746478255518,-1620.57,0.00033972,8]
[360011713,1746478255527,-400.0,0.00033972,8]
[360011716,1746478255536,-592.51,0.00033972,8]
[360011717,1746478255546,-400.0,0.00033972,8]
[360011719,1746478255555,-537.21,0.00033972,8]
[360011721,1746478255565,-400.0,0.00033972,8]
[360011723,1746478255574,-2523.41,0.00033972,8]
[360011725,1746478255583,-547.87,0.00033972,8]
[360011727,1746478255592,-400.0,0.00033972,8]
[360011729,1746478255602,-400.0,0.00033972,8]
[360011731,1746478255611,-543.46,0.00033972,8]
[360011733,1746478255620,-400.0,0.00033972,8]
[360011735,1746478255630,-500.0,0.00033972,8]
[360011737,1746478255639,-400.0,0.00033972,8]
[360011739,1746478255648,-151.0,0.00033972,14]
[360011741,1746478255658,-400.0,0.00033972,8]
[360011743,1746478255668,-770.95,0.00033972,8]
[360011746,1746478255678,-1081.95,0.00033972,8]
[360011748,1746478255687,-400.0,0.00033972,8]
[360011750,1746478255697,-151.0,0.00033972,14]
[360011752,1746478255708,-400.0,0.00033972,8]
[360011754,1746478255717,-400.0,0.00033972,8]
[360011770,1746478255841,-400.0,0.00033972,8]
[360011772,1746478255866,-483.31,0.00033972,8]
[360011774,1746478255876,-1243.4,0.00033972,8]
[360011776,1746478255885,-1098.85,0.00033972,8]
[360011778,1746478255894,-482.85,0.00033972,8]
[360011780,1746478255903,-400.0,0.00033972,8]
[360011782,1746478255913,-566.0,0.00033972,8]
[360011784,1746478255922,-400.0,0.00033972,8]
[360011786,1746478255931,-400.0,0.00033972,8]
[360011788,1746478255941,-400.0,0.00033972,8]
[360011790,1746478255950,-400.0,0.00033972,8]
[360011791,1746478255962,-400.0,0.00033972,8]
[360011793,1746478255971,-214.8854741,0.00033972,8]
[360011796,1746478255981,-400.0,0.00033972,8]
[360011797,1746478255990,-400.0,0.00033972,8]
[360011799,1746478256000,-400.0,0.00033972,8]
[360011802,1746478256010,-400.0,0.00033972,8]
[360011803,1746478256019,-400.0,0.00033972,8]
[360011806,1746478256030,-709.8,0.00033972,8]
[360011808,1746478256039,-400.0,0.00033972,8]
[360011809,1746478256049,-400.0,0.00033972,8]
[360011811,1746478256059,-4121.14,0.00033972,8]
[360011814,1746478256068,-400.0,0.00033972,8]
[360011815,1746478256077,-812.34,0.00033972,8]
[360011817,1746478256087,-654.51,0.00033972,8]
[360011820,1746478256096,-400.0,0.00033972,8]
[360011822,1746478256106,-730.71,0.00033972,8]
[360011824,1746478256116,-151.0,0.00033972,14]
[360011826,1746478256125,-400.0,0.00033972,8]
[360011828,1746478256135,-400.0,0.00033972,8]
[360011830,1746478256144,-400.0,0.00033972,8]
[360011832,1746478256152,-400.0,0.00033972,8]
[360011834,1746478256163,-400.0,0.00033972,8]
[360011836,1746478256172,-2752.23,0.00033972,2]
[360011838,1746478256181,-400.0,0.00033972,8]
[360011840,1746478256190,-432.56,0.00033972,8]
[360011842,1746478256199,-762.68,0.00033972,8]
[360011844,1746478256209,-431.94,0.00033972,8]
[360011846,1746478256218,-436.54,0.00033972,8]
[360011848,1746478256227,-400.0,0.00033972,8]
[360011850,1746478256236,-400.0,0.00033972,8]
[360011852,1746478256246,-673.29,0.00033972,8]
[360011854,1746478256255,-1252.09,0.00033972,8]
[360011856,1746478256264,-702.93,0.00033972,8]
[360011858,1746478256273,-400.0,0.00033972,8]
[360011860,1746478256282,-400.0,0.00033972,8]
[360011862,1746478256291,-400.0,0.00033972,8]
[360011864,1746478256300,-1335.89,0.00033972,8]
[360011865,1746478256309,-400.0,0.00033972,8]
[360011867,1746478256318,-409.22,0.00033972,8]
[360011869,1746478256327,-400.0,0.00033972,8]
[360011871,1746478256336,-990.15,0.00033972,8]
[360011872,1746478256345,-400.0,0.00033972,8]
[360011873,1746478256354,-317.83259284,0.00033972,8]
[360011874,1746478256363,-400.0,0.00033972,8]
[360011875,1746478256372,-784.71,0.00033972,8]
[360011876,1746478256382,-624.56,0.00033972,8]
[360011877,1746478256391,-411.93,0.00033972,8]
[360011878,1746478256400,-446.32,0.00033972,8]
[360011879,1746478256409,-500.9,0.00033972,8]
[360011880,1746478256418,-827.29,0.00033972,8]
[360011881,1746478256428,-530.84,0.00033972,8]
[360011883,1746478256437,-693.82,0.00033972,8]
[360011885,1746478256446,-612.41,0.00033972,8]
[360011886,1746478256455,-400.0,0.00033972,8]
[360011889,1746478256464,-151.0,0.00033972,14]